[Event "*** SCC Grand Prix: Titled Tuesday Blitz"]
[Site "Chess.com"]
[Date "2020.09.29"]
[Round "8"]
[White "TheMagnet"]
[Black "guillembaches"]
[Result "1/2-1/2"]
[WhiteElo "2571"]
[BlackElo "2423"]
[TimeControl "180+1"]
[EndTime "11:30:39 PDT"]
[Termination "Game drawn by agreement"]

1. d4 {[%clk 0:03:00.9]} 1... d5 {[%clk 0:02:59]} 2. c4 {[%clk 0:03:01.2]} 2...
Nc6 {[%clk 0:02:59.3]} 3. cxd5 {[%clk 0:02:58.3]} 3... Qxd5 {[%clk 0:02:58.9]}
4. e3 {[%clk 0:02:57]} 4... e5 {[%clk 0:02:58.9]} 5. Nc3 {[%clk 0:02:57.1]} 5...
Bb4 {[%clk 0:02:58.8]} 6. Bd2 {[%clk 0:02:57]} 6... Bxc3 {[%clk 0:02:56.5]} 7.
Bxc3 {[%clk 0:02:57.1]} 7... exd4 {[%clk 0:02:55.3]} 8. Ne2 {[%clk 0:02:57.6]}
8... Nf6 {[%clk 0:02:54.9]} 9. Nxd4 {[%clk 0:02:57.5]} 9... O-O {[%clk
0:02:54.9]} 10. Nxc6 {[%clk 0:02:54]} 10... Qxc6 {[%clk 0:02:54.7]} 11. Qf3
{[%clk 0:02:54.3]} 11... Nd5 {[%clk 0:02:39]} 12. Rc1 {[%clk 0:02:24.5]} 12...
Be6 {[%clk 0:02:26.6]} 13. Be2 {[%clk 0:02:17.3]} 13... Nxc3 {[%clk 0:02:20]}
14. Qxc6 {[%clk 0:02:14.1]} 14... bxc6 {[%clk 0:02:18.5]} 15. Rxc3 {[%clk
0:02:13.1]} 15... Bxa2 {[%clk 0:02:16.9]} 16. Rxc6 {[%clk 0:02:13.2]} 16... Bd5
{[%clk 0:02:06]} 17. Rxc7 {[%clk 0:02:12.3]} 17... Bxg2 {[%clk 0:02:05.9]} 18.
Rg1 {[%clk 0:02:11.2]} 18... Bd5 {[%clk 0:02:04.8]} 19. Rg5 {[%clk 0:02:02]}
19... Be6 {[%clk 0:02:00.8]} 20. Rb5 {[%clk 0:01:49.8]} 20... g6 {[%clk
0:01:51.6]} 21. Rbb7 {[%clk 0:01:47.3]} 21... a5 {[%clk 0:01:46.7]} 22. Bb5
{[%clk 0:01:35.9]} 22... a4 {[%clk 0:01:43.9]} 23. Bc4 {[%clk 0:01:27.8]} 23...
Bxc4 {[%clk 0:01:38.8]} 24. Rxc4 {[%clk 0:01:28.7]} 24... a3 {[%clk 0:01:38.5]}
25. bxa3 {[%clk 0:01:29.3]} 25... Rxa3 {[%clk 0:01:38.8]} 26. Rf4 {[%clk
0:01:26.4]} 26... Ra6 {[%clk 0:01:33]} 27. h4 {[%clk 0:01:24.8]} 27... h5 {[%clk
0:01:31.5]} 28. Ke2 {[%clk 0:01:25]} 28... Kg7 {[%clk 0:01:31]} 29. Kf3 {[%clk
0:01:21.1]} 29... Rf6 {[%clk 0:01:30.2]} 30. Rxf6 {[%clk 0:01:19.6]} 30... Kxf6
{[%clk 0:01:31.1]} 31. Kf4 {[%clk 0:01:20.3]} 31... Ra8 {[%clk 0:01:29.5]} 32.
Rb6+ {[%clk 0:01:19.7]} 32... Kg7 {[%clk 0:01:28.7]} 33. f3 {[%clk 0:01:19.7]}
33... Ra5 {[%clk 0:01:28]} 34. e4 {[%clk 0:01:18.9]} 34... Rc5 {[%clk
0:01:26.7]} 35. Rb7 {[%clk 0:01:19]} 35... Ra5 {[%clk 0:01:26.4]} 36. Rc7 {[%clk
0:01:18.9]} 36... Rb5 {[%clk 0:01:26.3]} 37. Rd7 {[%clk 0:01:19.2]} 37... Ra5
{[%clk 0:01:25.8]} 38. Rc7 {[%clk 0:01:19.3]} 1/2-1/2

[Event "*** SCC Grand Prix: Titled Tuesday Blitz"]
[Site "Chess.com"]
[Date "2020.09.29"]
[Round "8"]
[White "Makswolf200817"]
[Black "Sueetin"]
[Result "0-1"]
[WhiteElo "2408"]
[BlackElo "2295"]
[TimeControl "180+1"]
[EndTime "11:30:39 PDT"]
[Termination "Sueetin won by resignation"]

1. d4 {[%clk 0:03:00.9]} 1... Nf6 {[%clk 0:02:59.3]} 2. c4 {[%clk 0:03:00.6]}
2... e6 {[%clk 0:02:59.4]} 3. Nf3 {[%clk 0:02:59.2]} 3... d5 {[%clk 0:02:58.9]}
4. g3 {[%clk 0:02:58.1]} 4... Bb4+ {[%clk 0:02:57.7]} 5. Bd2 {[%clk 0:02:57.8]}
5... Be7 {[%clk 0:02:57.3]} 6. Bg2 {[%clk 0:02:58.1]} 6... O-O {[%clk
0:02:56.3]} 7. O-O {[%clk 0:02:58.7]} 7... Nbd7 {[%clk 0:02:54.6]} 8. Qc2 {[%clk
0:02:58.7]} 8... c6 {[%clk 0:02:48.4]} 9. Bf4 {[%clk 0:02:57]} 9... Ne4 {[%clk
0:02:45.6]} 10. Nc3 {[%clk 0:02:54.5]} 10... Nd6 {[%clk 0:02:45.6]} 11. c5
{[%clk 0:02:53.4]} 11... Nf5 {[%clk 0:02:31.4]} 12. b4 {[%clk 0:02:51.1]} 12...
g5 {[%clk 0:02:25.9]} 13. Be3 {[%clk 0:02:42.4]} 13... g4 {[%clk 0:02:24.6]} 14.
Nd2 {[%clk 0:02:40.1]} 14... Bf6 {[%clk 0:02:23.3]} 15. Nb3 {[%clk 0:02:39.3]}
15... Nxe3 {[%clk 0:02:18.7]} 16. fxe3 {[%clk 0:02:40.2]} 16... Bg5 {[%clk
0:02:17.3]} 17. e4 {[%clk 0:02:39.7]} 17... e5 {[%clk 0:01:54.8]} 18. dxe5
{[%clk 0:02:35]} 18... d4 {[%clk 0:01:52.8]} 19. e6 {[%clk 0:02:17.2]} 19... Ne5
{[%clk 0:01:46.6]} 20. exf7+ {[%clk 0:02:15]} 20... Rxf7 {[%clk 0:01:41.9]} 21.
Rxf7 {[%clk 0:02:10]} 21... Kxf7 {[%clk 0:01:30.3]} 22. Rd1 {[%clk 0:02:09.8]}
22... Be3+ {[%clk 0:01:29.4]} 23. Kh1 {[%clk 0:02:09.5]} 23... Qg5 {[%clk
0:01:27.7]} 24. Nxd4 {[%clk 0:02:08]} 24... Kg7 {[%clk 0:01:17.7]} 25. Nf5+
{[%clk 0:02:06.4]} 25... Bxf5 {[%clk 0:01:16.5]} 26. exf5 {[%clk 0:02:06.9]}
26... Rd8 {[%clk 0:01:10.3]} 27. Rxd8 {[%clk 0:01:57.7]} 27... Qxd8 {[%clk
0:01:11.2]} 28. Ne4 {[%clk 0:01:58.1]} 28... Qd4 {[%clk 0:01:08.1]} 29. f6+
{[%clk 0:01:55.6]} 29... Kf8 {[%clk 0:01:04.4]} 30. h3 {[%clk 0:01:43.9]} 30...
Qa1+ {[%clk 0:01:01.8]} 0-1

[Event "*** SCC Grand Prix: Titled Tuesday Blitz"]
[Site "Chess.com"]
[Date "2020.09.29"]
[Round "8"]
[White "ChessSkool"]
[Black "Sergey85Rodchenkov"]
[Result "1-0"]
[WhiteElo "2702"]
[BlackElo "2469"]
[TimeControl "180+1"]
[EndTime "11:30:44 PDT"]
[Termination "ChessSkool won by resignation"]

1. d4 {[%clk 0:02:59.9]} 1... Nf6 {[%clk 0:02:59.5]} 2. Bf4 {[%clk 0:03:00.1]}
2... b6 {[%clk 0:02:57.9]} 3. e3 {[%clk 0:02:58.1]} 3... Bb7 {[%clk 0:02:58.1]}
4. Nf3 {[%clk 0:02:56.9]} 4... g6 {[%clk 0:02:58]} 5. c4 {[%clk 0:02:56.5]} 5...
Bg7 {[%clk 0:02:58.1]} 6. Nc3 {[%clk 0:02:57]} 6... O-O {[%clk 0:02:58.1]} 7.
Be2 {[%clk 0:02:56.8]} 7... d6 {[%clk 0:02:58.6]} 8. h3 {[%clk 0:02:56.9]} 8...
Nbd7 {[%clk 0:02:58.9]} 9. Bh2 {[%clk 0:02:56.3]} 9... Re8 {[%clk 0:02:59.5]}
10. O-O {[%clk 0:02:54.6]} 10... e5 {[%clk 0:02:59.6]} 11. Qc2 {[%clk
0:02:53.6]} 11... exd4 {[%clk 0:02:57.7]} 12. Nxd4 {[%clk 0:02:53.2]} 12... Nc5
{[%clk 0:02:55.8]} 13. Bf3 {[%clk 0:02:51.1]} 13... Bxf3 {[%clk 0:02:53.8]} 14.
Nxf3 {[%clk 0:02:52]} 14... Nfe4 {[%clk 0:02:51.8]} 15. Nd5 {[%clk 0:02:48.7]}
15... a5 {[%clk 0:02:45.5]} 16. Rad1 {[%clk 0:02:46.6]} 16... Qd7 {[%clk
0:02:34.4]} 17. Nd4 {[%clk 0:02:45.5]} 17... f5 {[%clk 0:02:29]} 18. Nb5 {[%clk
0:02:34.8]} 18... Rac8 {[%clk 0:02:28.3]} 19. f3 {[%clk 0:02:23.3]} 19... Nf6
{[%clk 0:02:24.4]} 20. Ndxc7 {[%clk 0:02:23.1]} 20... Rxc7 {[%clk 0:02:20.7]}
21. Rxd6 {[%clk 0:02:23]} 21... Qe7 {[%clk 0:01:23.2]} 22. Nxc7 {[%clk
0:02:22.1]} 22... Qxe3+ {[%clk 0:01:17.1]} 23. Kh1 {[%clk 0:02:06.2]} 23... Rc8
{[%clk 0:01:16.5]} 24. Nd5 {[%clk 0:02:00.2]} 24... Nxd5 {[%clk 0:01:14.8]} 25.
Rxd5 {[%clk 0:02:00.7]} 25... h5 {[%clk 0:01:09.2]} 26. b3 {[%clk 0:01:54.8]}
26... h4 {[%clk 0:01:02.7]} 27. Qd2 {[%clk 0:01:52.8]} 27... Qe7 {[%clk
0:01:00]} 28. Re1 {[%clk 0:01:47.1]} 28... Qf7 {[%clk 0:00:57.3]} 29. Be5 {[%clk
0:01:38.8]} 29... Ne6 {[%clk 0:00:44.1]} 30. Rd7 {[%clk 0:01:36.1]} 30... Qf8
{[%clk 0:00:43.7]} 31. Qd5 {[%clk 0:01:32.2]} 1-0

[Event "*** SCC Grand Prix: Titled Tuesday Blitz"]
[Site "Chess.com"]
[Date "2020.09.29"]
[Round "8"]
[White "Zarinur"]
[Black "korkmaz16"]
[Result "1-0"]
[WhiteElo "2201"]
[BlackElo "2326"]
[TimeControl "180+1"]
[EndTime "11:30:51 PDT"]
[Termination "Zarinur won by resignation"]

1. e4 {[%clk 0:03:00.9]} 1... d5 {[%clk 0:02:57.5]} 2. exd5 {[%clk 0:02:59]}
2... Nf6 {[%clk 0:02:57.4]} 3. d4 {[%clk 0:02:57.5]} 3... Bg4 {[%clk 0:02:56.1]}
4. Be2 {[%clk 0:02:47.4]} 4... Bxe2 {[%clk 0:02:54.1]} 5. Nxe2 {[%clk
0:02:48.3]} 5... Qxd5 {[%clk 0:02:53.8]} 6. O-O {[%clk 0:02:47]} 6... Nc6 {[%clk
0:02:49.7]} 7. h3 {[%clk 0:02:32.8]} 7... O-O-O {[%clk 0:02:48.1]} 8. c3 {[%clk
0:02:19.5]} 8... e5 {[%clk 0:02:45]} 9. Be3 {[%clk 0:02:06.9]} 9... Bc5 {[%clk
0:02:24.7]} 10. Qa4 {[%clk 0:02:00]} 10... exd4 {[%clk 0:02:23.3]} 11. cxd4
{[%clk 0:01:58.9]} 11... Nxd4 {[%clk 0:02:23.2]} 12. Nxd4 {[%clk 0:01:54.3]}
12... Bxd4 {[%clk 0:02:21.8]} 13. Rd1 {[%clk 0:01:52.5]} 13... c5 {[%clk
0:01:26.3]} 14. Nc3 {[%clk 0:01:43.5]} 14... Qc6 {[%clk 0:01:16]} 15. Qxa7
{[%clk 0:01:37.8]} 15... Bxe3 {[%clk 0:01:09.7]} 16. fxe3 {[%clk 0:01:26.4]}
16... Rhe8 {[%clk 0:01:04]} 17. Qa8+ {[%clk 0:01:17.7]} 17... Kc7 {[%clk
0:01:03.8]} 18. Qa5+ {[%clk 0:01:17.1]} 18... Kc8 {[%clk 0:00:57.5]} 19. Nb5
{[%clk 0:01:13.6]} 19... Rd5 {[%clk 0:00:52]} 20. Na7+ {[%clk 0:01:11.2]} 20...
Kd7 {[%clk 0:00:50]} 21. Nxc6 {[%clk 0:01:09.7]} 21... Kxc6 {[%clk 0:00:50.9]}
22. Qa4+ {[%clk 0:01:05.8]} 22... Kc7 {[%clk 0:00:49.5]} 23. Rxd5 {[%clk
0:01:01.8]} 1-0

[Event "*** SCC Grand Prix: Titled Tuesday Blitz"]
[Site "Chess.com"]
[Date "2020.09.29"]
[Round "8"]
[White "Superfelix"]
[Black "giantslayer83"]
[Result "0-1"]
[WhiteElo "2499"]
[BlackElo "2706"]
[TimeControl "180+1"]
[EndTime "11:30:52 PDT"]
[Termination "giantslayer83 won by resignation"]

1. e4 {[%clk 0:03:00.9]} 1... c6 {[%clk 0:02:59.5]} 2. Nc3 {[%clk 0:03:00.7]}
2... d5 {[%clk 0:03:00.4]} 3. Qe2 {[%clk 0:03:01.1]} 3... d4 {[%clk 0:02:51.4]}
4. Nd1 {[%clk 0:03:00.7]} 4... e5 {[%clk 0:02:51.8]} 5. d3 {[%clk 0:02:52]} 5...
Bd6 {[%clk 0:02:50.4]} 6. g3 {[%clk 0:02:52.2]} 6... c5 {[%clk 0:02:48.6]} 7. f4
{[%clk 0:02:51.9]} 7... Nc6 {[%clk 0:02:48.2]} 8. Nf3 {[%clk 0:02:52]} 8... Nge7
{[%clk 0:02:43.8]} 9. Nf2 {[%clk 0:02:51.9]} 9... f6 {[%clk 0:02:42]} 10. Bh3
{[%clk 0:02:48.5]} 10... Bxh3 {[%clk 0:02:39.5]} 11. Nxh3 {[%clk 0:02:49.4]}
11... Qd7 {[%clk 0:02:40.2]} 12. f5 {[%clk 0:02:49.3]} 12... g6 {[%clk
0:02:37.4]} 13. g4 {[%clk 0:02:30.4]} 13... h5 {[%clk 0:02:36.6]} 14. Nf2 {[%clk
0:02:28]} 14... O-O-O {[%clk 0:02:34.9]} 15. gxh5 {[%clk 0:02:21.3]} 15... gxf5
{[%clk 0:02:34]} 16. exf5 {[%clk 0:02:21.1]} 16... Nxf5 {[%clk 0:02:34.3]} 17.
Ne4 {[%clk 0:02:21]} 17... Be7 {[%clk 0:02:34.3]} 18. Bd2 {[%clk 0:02:18.2]}
18... Qe8 {[%clk 0:02:28.9]} 19. h6 {[%clk 0:02:12.9]} 19... Nxh6 {[%clk
0:02:27.5]} 20. Bxh6 {[%clk 0:02:10.6]} 20... Rxh6 {[%clk 0:02:28.4]} 21. Ng3
{[%clk 0:02:09.3]} 21... Qd7 {[%clk 0:02:04]} 22. Qe4 {[%clk 0:02:08.5]} 22...
Nb4 {[%clk 0:02:00.2]} 23. Nf5 {[%clk 0:01:59]} 23... Rh3 {[%clk 0:01:45.9]} 24.
O-O-O {[%clk 0:01:46.8]} 24... Nxa2+ {[%clk 0:01:43.5]} 25. Kb1 {[%clk
0:01:40.1]} 25... Nb4 {[%clk 0:01:12.4]} 26. b3 {[%clk 0:01:31.7]} 26... Bf8
{[%clk 0:01:10.8]} 27. Kb2 {[%clk 0:01:29.2]} 27... Qd5 {[%clk 0:01:02.7]} 28.
Qg4 {[%clk 0:01:22.4]} 28... Qxf3 {[%clk 0:01:00.6]} 29. Nd6+ {[%clk 0:01:07.9]}
29... Kb8 {[%clk 0:01:00.1]} 0-1

[Event "*** SCC Grand Prix: Titled Tuesday Blitz"]
[Site "Chess.com"]
[Date "2020.09.29"]
[Round "8"]
[White "AleksanderHnydiuk"]
[Black "XDPS"]
[Result "0-1"]
[WhiteElo "2557"]
[BlackElo "2754"]
[TimeControl "180+1"]
[EndTime "11:31:09 PDT"]
[Termination "XDPS won on time"]

1. e4 {[%clk 0:03:00.9]} 1... c5 {[%clk 0:02:50.9]} 2. Nf3 {[%clk 0:03:00.4]}
2... d6 {[%clk 0:02:48.2]} 3. d4 {[%clk 0:03:00.3]} 3... cxd4 {[%clk 0:02:49.1]}
4. Nxd4 {[%clk 0:03:00.8]} 4... Nf6 {[%clk 0:02:49.7]} 5. Nc3 {[%clk 0:03:01.4]}
5... a6 {[%clk 0:02:50.4]} 6. Be3 {[%clk 0:03:01.2]} 6... e6 {[%clk 0:02:48.5]}
7. Qd2 {[%clk 0:03:00.1]} 7... b5 {[%clk 0:02:47.1]} 8. f3 {[%clk 0:02:59.4]}
8... b4 {[%clk 0:02:46.4]} 9. Na4 {[%clk 0:02:46]} 9... Nbd7 {[%clk 0:02:43.8]}
10. g4 {[%clk 0:02:37.9]} 10... h6 {[%clk 0:02:39]} 11. O-O-O {[%clk 0:02:37.5]}
11... Qa5 {[%clk 0:02:24.6]} 12. b3 {[%clk 0:02:36.6]} 12... Bb7 {[%clk
0:02:21.3]} 13. a3 {[%clk 0:02:13.5]} 13... Qc7 {[%clk 0:02:21]} 14. axb4 {[%clk
0:02:12.2]} 14... d5 {[%clk 0:02:21.2]} 15. b5 {[%clk 0:01:47.5]} 15... e5
{[%clk 0:02:01.4]} 16. bxa6 {[%clk 0:01:44.9]} 16... Bxa6 {[%clk 0:01:52.5]} 17.
Nb5 {[%clk 0:01:21.9]} 17... Bxb5 {[%clk 0:01:49.4]} 18. Bxb5 {[%clk 0:01:20.8]}
18... d4 {[%clk 0:01:48.6]} 19. Bf2 {[%clk 0:01:04.3]} 19... Ba3+ {[%clk
0:01:44.5]} 20. Kb1 {[%clk 0:01:04.3]} 20... O-O {[%clk 0:01:44.6]} 21. g5
{[%clk 0:00:21.2]} 21... hxg5 {[%clk 0:01:33.7]} 22. Qxg5 {[%clk 0:00:19.6]}
22... Rfb8 {[%clk 0:01:34]} 23. Rhg1 {[%clk 0:00:15.1]} 23... Bf8 {[%clk
0:01:32.6]} 24. Bxd7 {[%clk 0:00:02.5]} 24... Qxd7 {[%clk 0:01:32.8]} 0-1

[Event "*** SCC Grand Prix: Titled Tuesday Blitz"]
[Site "Chess.com"]
[Date "2020.09.29"]
[Round "8"]
[White "WinstonSilvakov"]
[Black "MariaFominykh"]
[Result "0-1"]
[WhiteElo "2145"]
[BlackElo "2318"]
[TimeControl "180+1"]
[EndTime "11:31:10 PDT"]
[Termination "MariaFominykh won by checkmate"]

1. d4 {[%clk 0:03:00.8]} 1... d6 {[%clk 0:02:56.4]} 2. e4 {[%clk 0:03:00.2]}
2... Nf6 {[%clk 0:02:55.5]} 3. Nc3 {[%clk 0:03:00.7]} 3... e5 {[%clk 0:02:55.4]}
4. dxe5 {[%clk 0:03:00.5]} 4... dxe5 {[%clk 0:02:55.5]} 5. Qxd8+ {[%clk
0:03:01.4]} 5... Kxd8 {[%clk 0:02:56]} 6. Bc4 {[%clk 0:03:02]} 6... Be6 {[%clk
0:02:54.2]} 7. Bxe6 {[%clk 0:03:01.2]} 7... fxe6 {[%clk 0:02:55.1]} 8. Nf3
{[%clk 0:03:00.7]} 8... Bd6 {[%clk 0:02:55.4]} 9. Be3 {[%clk 0:02:58.1]} 9... a6
{[%clk 0:02:51.7]} 10. h3 {[%clk 0:02:56.3]} 10... Nbd7 {[%clk 0:02:50.7]} 11.
O-O-O {[%clk 0:02:54.6]} 11... Ke7 {[%clk 0:02:50]} 12. g4 {[%clk 0:02:54.1]}
12... b5 {[%clk 0:02:47.6]} 13. b3 {[%clk 0:02:52.4]} 13... b4 {[%clk
0:02:45.7]} 14. Na4 {[%clk 0:02:51.9]} 14... Nxe4 {[%clk 0:02:44.7]} 15. Rhe1
{[%clk 0:02:51.3]} 15... Nef6 {[%clk 0:02:37.8]} 16. Nh4 {[%clk 0:02:45.5]}
16... Nd5 {[%clk 0:02:28.7]} 17. Ng2 {[%clk 0:02:34.5]} 17... Rhf8 {[%clk
0:02:17.8]} 18. Nb2 {[%clk 0:02:24.1]} 18... Nxe3 {[%clk 0:02:12.8]} 19. fxe3
{[%clk 0:02:21.5]} 19... Rf2 {[%clk 0:02:01.5]} 20. Rg1 {[%clk 0:02:21.2]} 20...
Nb6 {[%clk 0:01:56.9]} 21. Nd3 {[%clk 0:02:20.6]} 21... Rf3 {[%clk 0:01:47.4]}
22. h4 {[%clk 0:02:15.7]} 22... Nd5 {[%clk 0:01:40.7]} 23. Rde1 {[%clk
0:02:13.9]} 23... a5 {[%clk 0:01:35.2]} 24. Re2 {[%clk 0:02:06.7]} 24... Nc3
{[%clk 0:01:33.3]} 25. Ree1 {[%clk 0:01:59.5]} 25... Nxa2+ {[%clk 0:01:33]} 26.
Kb2 {[%clk 0:02:00.4]} 26... Nc3 {[%clk 0:01:32.9]} 27. Ra1 {[%clk 0:01:55.4]}
27... e4 {[%clk 0:01:28.9]} 28. Ndf4 {[%clk 0:01:52.7]} 28... Be5 {[%clk
0:01:26]} 29. Rae1 {[%clk 0:01:46.7]} 29... a4 {[%clk 0:01:15.4]} 30. bxa4
{[%clk 0:01:42.3]} 30... Rxa4 {[%clk 0:01:08.4]} 31. Kb3 {[%clk 0:01:41.3]}
31... c5 {[%clk 0:00:59]} 32. Ne2 {[%clk 0:01:39.8]} 32... Ra3+ {[%clk
0:00:46.3]} 33. Kc4 {[%clk 0:01:39.6]} 33... Nxe2 {[%clk 0:00:38.2]} 34. Rxe2
{[%clk 0:01:39.6]} 34... Kd6 {[%clk 0:00:36.7]} 35. Rd1+ {[%clk 0:01:36.9]}
35... Kc6 {[%clk 0:00:36.7]} 36. Rd8 {[%clk 0:01:36.8]} 36... Rc3# {[%clk
0:00:35.4]} 0-1

[Event "*** SCC Grand Prix: Titled Tuesday Blitz"]
[Site "Chess.com"]
[Date "2020.09.29"]
[Round "8"]
[White "Tenamu"]
[Black "dodorox"]
[Result "1-0"]
[WhiteElo "2369"]
[BlackElo "2046"]
[TimeControl "180+1"]
[EndTime "11:31:17 PDT"]
[Termination "Tenamu won by checkmate"]

1. d4 {[%clk 0:03:00.9]} 1... Nf6 {[%clk 0:02:57.9]} 2. Nc3 {[%clk 0:03:00.2]}
2... d5 {[%clk 0:02:54.8]} 3. Bf4 {[%clk 0:03:00.3]} 3... e6 {[%clk 0:02:51.7]}
4. a3 {[%clk 0:03:00.1]} 4... Bd6 {[%clk 0:02:48.7]} 5. e3 {[%clk 0:02:59.2]}
5... Bxf4 {[%clk 0:02:38.3]} 6. exf4 {[%clk 0:03:00.1]} 6... O-O {[%clk
0:02:36.9]} 7. g4 {[%clk 0:02:59.6]} 7... c5 {[%clk 0:02:31.5]} 8. dxc5 {[%clk
0:02:56.4]} 8... Nc6 {[%clk 0:02:07.8]} 9. b4 {[%clk 0:02:54]} 9... a5 {[%clk
0:01:58.4]} 10. b5 {[%clk 0:02:51.4]} 10... Ne7 {[%clk 0:01:53.4]} 11. Qd4
{[%clk 0:02:48.8]} 11... Nxg4 {[%clk 0:01:43.8]} 12. Bd3 {[%clk 0:02:45.7]}
12... Ng6 {[%clk 0:01:25.9]} 13. h3 {[%clk 0:02:33.9]} 13... Qf6 {[%clk
0:01:20.6]} 14. Nf3 {[%clk 0:02:28.5]} 14... Qxd4 {[%clk 0:01:13]} 15. Nxd4
{[%clk 0:02:29.4]} 15... Nf6 {[%clk 0:01:12.1]} 16. Nce2 {[%clk 0:02:27]} 16...
Nh5 {[%clk 0:00:51.1]} 17. Bxg6 {[%clk 0:02:25.4]} 17... fxg6 {[%clk 0:00:44.8]}
18. f5 {[%clk 0:02:22.5]} 18... gxf5 {[%clk 0:00:39.5]} 19. f4 {[%clk
0:02:21.4]} 19... Nf6 {[%clk 0:00:18.2]} 20. Ng3 {[%clk 0:02:19.5]} 20... Ne4
{[%clk 0:00:16.8]} 21. Nxe4 {[%clk 0:02:19.3]} 21... fxe4 {[%clk 0:00:15.8]} 22.
O-O {[%clk 0:02:17.9]} 22... Bd7 {[%clk 0:00:10.1]} 23. c6 {[%clk 0:02:16.2]}
23... bxc6 {[%clk 0:00:08.8]} 24. bxc6 {[%clk 0:02:14.4]} 24... Be8 {[%clk
0:00:07.9]} 25. Rab1 {[%clk 0:02:08.9]} 25... Rc8 {[%clk 0:00:07.4]} 26. c7
{[%clk 0:02:04.8]} 26... Rf7 {[%clk 0:00:06.6]} 27. Nxe6 {[%clk 0:02:03]} 27...
Bd7 {[%clk 0:00:06.5]} 28. Nd8 {[%clk 0:01:57.2]} 28... Re7 {[%clk 0:00:05.9]}
29. Rb7 {[%clk 0:01:55.4]} 29... Bxh3 {[%clk 0:00:05.5]} 30. Rd1 {[%clk
0:01:54.6]} 30... Rexc7 {[%clk 0:00:05.7]} 31. Rxc7 {[%clk 0:01:49.2]} 31...
Rxc7 {[%clk 0:00:06]} 32. Rxd5 {[%clk 0:01:50.1]} 32... Rxc2 {[%clk 0:00:06.1]}
33. Re5 {[%clk 0:01:50.4]} 33... Rg2+ {[%clk 0:00:05.6]} 34. Kh1 {[%clk
0:01:50.2]} 34... Re2 {[%clk 0:00:06.2]} 35. Re8# {[%clk 0:01:50.3]} 1-0

[Event "*** SCC Grand Prix: Titled Tuesday Blitz"]
[Site "Chess.com"]
[Date "2020.09.29"]
[Round "8"]
[White "kosya4ok"]
[Black "vladislavkovalev"]
[Result "0-1"]
[WhiteElo "2615"]
[BlackElo "2850"]
[TimeControl "180+1"]
[EndTime "11:31:21 PDT"]
[Termination "vladislavkovalev won by resignation"]

1. d4 {[%clk 0:02:58.8]} 1... Nf6 {[%clk 0:03:00.3]} 2. c4 {[%clk 0:02:58.8]}
2... g6 {[%clk 0:03:00.8]} 3. Nc3 {[%clk 0:02:58.3]} 3... Bg7 {[%clk 0:03:01.5]}
4. e4 {[%clk 0:02:57.2]} 4... d6 {[%clk 0:03:02.2]} 5. Nf3 {[%clk 0:02:58.1]}
5... O-O {[%clk 0:03:02.5]} 6. Be2 {[%clk 0:02:59]} 6... e5 {[%clk 0:03:02.5]}
7. O-O {[%clk 0:02:59.3]} 7... Na6 {[%clk 0:03:02.9]} 8. Be3 {[%clk 0:02:57.9]}
8... Ng4 {[%clk 0:03:03.1]} 9. Bg5 {[%clk 0:02:57.9]} 9... Qe8 {[%clk
0:03:03.8]} 10. d5 {[%clk 0:02:54.8]} 10... f6 {[%clk 0:03:01.5]} 11. Bd2 {[%clk
0:02:50.8]} 11... f5 {[%clk 0:02:50.4]} 12. Ng5 {[%clk 0:02:38.6]} 12... Nf6
{[%clk 0:02:50.3]} 13. Bf3 {[%clk 0:01:59.5]} 13... f4 {[%clk 0:02:41.6]} 14.
Be2 {[%clk 0:01:27.6]} 14... h6 {[%clk 0:02:35.7]} 15. Ne6 {[%clk 0:01:10.3]}
15... Bxe6 {[%clk 0:02:33.9]} 16. dxe6 {[%clk 0:01:11.2]} 16... Qxe6 {[%clk
0:02:34.8]} 17. b4 {[%clk 0:01:09.2]} 17... c6 {[%clk 0:02:24]} 18. Qb3 {[%clk
0:00:46.2]} 18... Kh7 {[%clk 0:02:24.1]} 19. Rfd1 {[%clk 0:00:45.9]} 19... Nc7
{[%clk 0:02:19.4]} 20. Be1 {[%clk 0:00:44.1]} 20... g5 {[%clk 0:02:10.9]} 21. f3
{[%clk 0:00:44.4]} 21... h5 {[%clk 0:02:08]} 22. a4 {[%clk 0:00:44.3]} 22... g4
{[%clk 0:02:05.6]} 23. a5 {[%clk 0:00:41.8]} 23... Rf7 {[%clk 0:01:58.6]} 24.
Qa2 {[%clk 0:00:39.9]} 24... Rg8 {[%clk 0:01:49.8]} 25. Kh1 {[%clk 0:00:36]}
25... gxf3 {[%clk 0:01:46.2]} 26. gxf3 {[%clk 0:00:35.2]} 26... Bf8 {[%clk
0:01:44.5]} 27. Bf1 {[%clk 0:00:31.9]} 27... Rfg7 {[%clk 0:01:40.6]} 28. Bf2
{[%clk 0:00:31.5]} 28... Ng4 {[%clk 0:01:37.6]} 29. fxg4 {[%clk 0:00:30.4]}
29... Qxg4 {[%clk 0:01:38.5]} 30. Bg3 {[%clk 0:00:18.6]} 30... fxg3 {[%clk
0:01:35.8]} 31. Be2 {[%clk 0:00:19.1]} 31... Qh3 {[%clk 0:01:33]} 32. Bf3 {[%clk
0:00:19.6]} 32... g2+ {[%clk 0:01:31]} 0-1